bitfinex/quotes_BTCUSD_20250218
["timestamp","ask_amount","ask_price","bid_price","bid_amount"]
[1739892216338,0.338692,95729.0,95710.0,0.156721]
[1739892216543,0.338692,95729.0,95714.0,0.001]
[1739892216755,0.15,95727.0,95698.0,0.10250365]
[1739892216976,0.22109879,95710.0,95689.0,0.00034]
[1739892217177,0.22109879,95710.0,95690.0,0.10250365]
[1739892217397,0.15,95719.0,95699.0,0.156741]
[1739892217398,0.156715,95715.0,95699.0,0.156741]
[1739892217649,0.15,95713.0,95700.0,0.156739]
[1739892217860,0.15,95719.0,95690.0,0.10250365]
[1739892218079,0.15,95717.0,95690.0,0.10250365]
[1739892218289,0.148959,95716.0,95690.0,0.10260959]
[1739892218523,0.15,95714.0,95690.0,0.10260959]
[1739892218735,0.306717,95714.0,95698.0,0.156741]
[1739892219159,0.306717,95714.0,95699.0,0.15674]
[1739892219628,0.01802853,95714.0,95691.0,0.209006]
[1739892219850,0.01802853,95714.0,95700.0,0.156738]
[1739892220057,0.15,95715.0,95700.0,0.156738]
[1739892220257,0.15,95713.0,95698.0,0.208989]
[1739892220477,0.15,95713.0,95700.0,0.208986]
[1739892220691,0.15,95713.0,95699.0,0.156739]
[1739892220900,0.15,95713.0,95700.0,0.002]
[1739892221789,0.08691869,95731.0,95701.0,0.10250365]
[1739892222009,0.15,95723.0,95707.0,0.156726]
[1739892222230,0.14707468,95720.0,95701.0,0.10250365]
[1739892222392,0.34648543,95728.0,95701.0,0.10250365]
[1739892222393,0.01778543,95728.0,95701.0,0.10250365]
[1739892222586,0.0479,95734.0,95702.0,0.03346765]
[1739892222807,0.0479,95734.0,95723.0,0.1567]
[1739892222808,0.06548846,95734.0,95723.0,0.1567]
[1739892222984,0.06548846,95734.0,95704.0,0.00104469]
[1739892223188,0.002,95728.0,95715.0,0.156714]
[1739892223392,0.143761,95727.0,95715.0,0.10250365]
[1739892223597,0.14707468,95730.0,95715.0,0.25921765]
[1739892223804,0.14707468,95730.0,95717.0,0.156711]
[1739892224043,0.156693,95729.0,95715.0,0.10250365]
[1739892224280,0.14707468,95730.0,95715.0,0.10260959]
[1739892224501,0.5855,95729.0,95715.0,0.10260959]
[1739892224703,0.156693,95728.0,95715.0,0.10260959]
[1739892224912,0.56159,95728.0,95715.0,0.25932359]
[1739892225139,0.14707468,95730.0,95715.0,0.10260959]
[1739892225392,0.43192,95729.0,95715.0,0.26132459]
[1739892225606,0.14707468,95730.0,95716.0,0.00689702]
[1739892225772,0.306671,95729.0,95715.0,0.10260959]
[1739892226024,0.249071,95729.0,95715.0,0.10260959]
[1739892226266,0.15,95733.0,95716.0,0.03254243]
[1739892226488,0.14707468,95730.0,95717.0,0.03254243]
[1739892226691,0.279471,95729.0,95718.0,0.03254243]
[1739892227016,0.279471,95729.0,95715.0,0.00010594]
[1739892227293,0.279471,95729.0,95716.0,0.03258875]
[1739892227294,0.23509461,95728.0,95716.0,0.03258875]
[1739892227503,0.15,95725.0,95717.0,0.03258875]
[1739892227616,0.156707,95720.0,95715.0,0.00110594]
[1739892227847,0.15,95722.0,95716.0,0.03259017]
[1739892228145,0.15,95722.0,95715.0,0.00110594]
[1739892228342,0.306703,95722.0,95716.0,0.03259473]
[1739892228544,0.156713,95716.0,95715.0,0.00110594]
[1739892228744,0.156713,95716.0,95715.0,0.03370066]
[1739892228950,0.208948,95718.0,95715.0,0.03370066]
[1739892228951,0.15,95727.0,95715.0,0.03270066]
[1739892229159,0.15,95723.0,95715.0,0.00010594]
[1739892229365,0.208907,95737.0,95716.0,0.032597]
[1739892229567,0.15,95732.0,95717.0,0.032597]
[1739892229796,0.306687,95732.0,95718.0,0.189306]
[1739892229976,0.156689,95731.0,95719.0,0.032597]
[1739892230317,0.15,95732.0,95720.0,0.032597]
[1739892230525,0.30376668,95730.0,95721.0,0.032597]
[1739892230698,0.30376668,95730.0,95722.0,0.032597]
[1739892230880,0.30376668,95730.0,95723.0,0.032597]
[1739892231081,0.14707468,95730.0,95724.0,0.032597]
[1739892231284,1.904569,95729.0,95715.0,0.00010594]
[1739892231497,0.156713,95716.0,95715.0,0.00010594]
[1739892231713,0.420617,95716.0,95715.0,0.03270616]
[1739892231917,0.420617,95716.0,95715.0,0.00010594]
[1739892232123,0.15,95716.0,95715.0,0.00010594]
[1739892232318,0.306713,95716.0,95715.0,0.00010594]
[1739892232825,0.15,95716.0,95715.0,0.00010594]
[1739892233029,0.517399,95716.0,95715.0,0.00010594]
[1739892233238,0.676463,95716.0,95715.0,0.00010594]
[1739892233450,0.676463,95716.0,95715.0,0.00210594]
[1739892233658,0.676463,95716.0,95715.0,0.00010594]
[1739892234089,0.676463,95716.0,95715.0,0.00110594]
[1739892234713,0.329713,95716.0,95715.0,0.00110594]
[1739892234914,2.362498,95716.0,95715.0,0.00110594]
[1739892235142,0.15,95716.0,95715.0,0.00110594]
[1739892235328,0.35599668,95730.0,95715.0,0.00010594]
[1739892235563,0.156702,95723.0,95715.0,0.00110594]
[1739892235771,0.15,95724.0,95715.0,0.00110594]
[1739892235877,0.15,95724.0,95715.0,0.00010594]
[1739892236077,0.15,95721.0,95715.0,0.00110594]
[1739892236296,0.156713,95716.0,95715.0,0.00010594]
[1739892236726,0.319046,95716.0,95715.0,0.00110594]
[1739892236960,0.319046,95716.0,95715.0,0.00010594]
[1739892237133,0.15,95725.0,95715.0,0.00010594]
[1739892237346,0.306702,95723.0,95715.0,0.00110594]
[1739892237544,0.15,95721.0,95715.0,0.00110594]
[1739892238187,0.15,95725.0,95715.0,0.00110594]
[1739892238389,0.156713,95716.0,95715.0,0.00110594]
[1739892238565,0.156713,95716.0,95715.0,0.00010594]
[1739892238767,0.306713,95716.0,95715.0,0.00010594]
[1739892239000,0.15,95716.0,95715.0,0.00310594]
[1739892239232,0.15,95716.0,95715.0,0.00010594]
[1739892239632,0.15,95716.0,95715.0,0.00410594]
[1739892239940,0.15,95716.0,95715.0,0.00010594]
[1739892240143,0.15,95716.0,95715.0,0.00110594]
[1739892240285,0.15,95725.0,95715.0,0.00110594]
[1739892240493,0.156703,95722.0,95715.0,0.00010594]
[1739892240685,0.156703,95722.0,95715.0,0.00044634]
[1739892240889,0.15,95725.0,95715.0,0.00044634]
[1739892241099,0.06178523,95754.0,95716.0,0.10250365]
[1739892241100,0.01758846,95734.0,95716.0,0.10250365]
[1739892241296,0.3288703,95739.0,95735.0,0.156682]
[1739892241499,0.3288703,95739.0,95726.0,0.156697]
[1739892241699,0.34499142,95739.0,95703.0,0.06538895]
[1739892241903,0.14707468,95730.0,95717.0,0.03262862]
[1739892242105,0.30376568,95730.0,95717.0,0.10250365]
[1739892242288,0.30376568,95730.0,95715.0,0.00044634]
[1739892242289,0.14707468,95730.0,95715.0,0.00044634]
[1739892242489,0.92643,95729.0,95715.0,0.00044634]
[1739892242811,0.156697,95726.0,95715.0,0.00044634]
[1739892243011,0.15,95727.0,95715.0,0.00044634]
[1739892243431,0.0001702,95740.0,95729.0,0.156691]
[1739892243609,0.0001702,95740.0,95727.0,0.156693]
[1739892243809,0.0001702,95740.0,95722.0,0.208936]
[1739892244020,0.0001702,95740.0,95716.0,0.10250365]
[1739892244021,0.15,95738.0,95727.0,0.208927]
[1739892244332,0.15,95738.0,95729.0,0.156691]
[1739892244674,0.15,95738.0,95727.0,0.156693]
[1739892244910,0.15,95738.0,95723.0,0.208936]
[1739892245119,0.15,95738.0,95727.0,0.156694]
[1739892245432,0.15,95738.0,95728.0,0.156693]
[1739892245557,0.15,95738.0,95721.0,0.156704]
[1739892245765,0.156685,95733.0,95721.0,0.156704]
[1739892246188,0.156689,95731.0,95719.0,0.156708]
[1739892246412,0.15,95738.0,95715.0,0.00044634]
[1739892246413,0.0156689,95730.0,95715.0,0.00044634]
[1739892246585,0.15,95728.0,95715.0,0.00044634]
[1739892246765,0.156706,95721.0,95715.0,0.00044634]
[1739892246964,0.15,95726.0,95715.0,0.00044634]
[1739892247367,0.326404,95725.0,95715.0,0.00044634]
[1739892247593,0.156713,95716.0,95715.0,0.00044634]
[1739892248423,1.54347243,95716.0,95715.0,0.00044634]
[1739892248622,2.53030343,95716.0,95715.0,0.00044634]
[1739892248906,2.111273,95716.0,95715.0,0.00244634]
[1739892249104,0.455445,95716.0,95715.0,0.00044634]
[1739892249340,0.298732,95716.0,95715.0,0.00044634]
[1739892249551,0.01637576,95725.0,95715.0,0.00144634]
[1739892249766,0.03713288,95739.0,95715.0,0.00044634]
[1739892249767,0.156691,95730.0,95715.0,0.00044634]
[1739892249979,0.15,95729.0,95717.0,0.15671]
[1739892250192,0.306692,95729.0,95717.0,0.15671]
[1739892250405,0.15,95729.0,95715.0,0.00144634]
[1739892250857,0.306692,95729.0,95715.0,0.00144634]
[1739892251063,0.15,95730.0,95715.0,0.21039934]
[1739892251269,0.15,95730.0,95715.0,0.20939934]
[1739892251482,0.01637418,95738.0,95716.0,0.10250365]
[1739892251697,0.01637418,95738.0,95717.0,0.208949]
[1739892251941,0.01603476,95739.0,95738.0,0.156677]
[1739892252159,0.0001702,95740.0,95719.0,0.208944]
[1739892252160,0.0001702,95740.0,95739.0,0.156675]
[1739892252595,0.0001702,95740.0,95731.0,0.0807]
[1739892252813,0.0001702,95740.0,95732.0,0.10250365]
[1739892253244,0.0001702,95740.0,95738.0,0.156677]
[1739892255589,0.0001702,95740.0,95738.0,0.159677]
[1739892255808,0.0001702,95740.0,95738.0,0.156677]
[1739892256025,0.0001702,95740.0,95739.0,0.10250365]
[1739892256935,0.0001702,95740.0,95739.0,0.25917865]
[1739892257568,0.0001702,95740.0,95731.0,0.0807]
[1739892257778,0.0001702,95740.0,95739.0,0.156675]
[1739892258972,0.0001702,95740.0,95739.0,0.006]
[1739892259176,0.0001702,95740.0,95739.0,0.162675]
[1739892259815,0.0001702,95740.0,95739.0,0.26517865]
[1739892262541,0.0001702,95740.0,95739.0,0.006]
[1739892263396,0.0001702,95740.0,95731.0,0.208916]
[1739892263525,0.0001702,95740.0,95738.0,0.0003404]
[1739892263738,0.0001702,95740.0,95739.0,0.001]
[1739892264843,0.0001702,95740.0,95738.0,0.0003404]
[1739892265243,0.0001702,95740.0,95739.0,0.10450365]
[1739892265446,0.0001702,95740.0,95739.0,0.25917865]
[1739892265869,0.0001702,95740.0,95739.0,0.26117865]
[1739892266116,0.0001702,95740.0,95739.0,0.25917865]
[1739892266523,0.0001702,95740.0,95739.0,0.26017865]
[1739892266932,0.0001702,95740.0,95739.0,0.25917865]
[1739892268449,0.0001702,95740.0,95739.0,0.10250365]
[1739892268770,0.0001702,95740.0,95739.0,0.26517865]
[1739892269191,0.0001702,95740.0,95739.0,0.25917865]
[1739892269415,0.0001702,95740.0,95739.0,0.10850365]
[1739892269644,0.156675,95739.0,95738.0,0.0003404]
[1739892270073,0.0001702,95740.0,95738.0,0.0003404]
[1739892270074,0.1568442,95740.0,95739.0,0.006]
[1739892270297,0.156675,95739.0,95738.0,0.0003404]
[1739892270509,0.1568442,95740.0,95739.0,0.003]
[1739892271476,0.0001702,95740.0,95739.0,0.003]
[1739892271696,0.0001702,95740.0,95738.0,0.0003404]
[1739892271923,0.156675,95739.0,95738.0,0.0003404]
[1739892272137,0.0001702,95740.0,95738.0,0.0023404]
[1739892272342,0.0001702,95740.0,95738.0,0.0003404]
[1739892272540,0.0001702,95740.0,95739.0,0.26117865]
[1739892272860,0.0001702,95740.0,95739.0,0.26409542]
[1739892273510,0.0001702,95740.0,95739.0,0.26653877]
[1739892275031,0.0001702,95740.0,95739.0,0.2890355]
[1739892276978,0.0001702,95740.0,95739.0,0.4390355]
[1739892278099,0.0001702,95740.0,95739.0,0.4330355]
[1739892278722,0.0001702,95740.0,95739.0,0.47259533]
[1739892279230,0.0001702,95740.0,95739.0,0.55319533]
[1739892279441,0.0001702,95740.0,95739.0,0.5206355]
[1739892286503,0.0001702,95740.0,95739.0,0.5209759]
[1739892286832,0.0001702,95740.0,95739.0,0.27387917]
[1739892287268,0.0001702,95740.0,95739.0,0.2897545]
[1739892287648,0.0001702,95740.0,95739.0,0.4397545]
[1739892288676,0.0001702,95740.0,95739.0,0.27387917]
[1739892289367,0.0001702,95740.0,95739.0,0.26687917]
[1739892290854,0.0001702,95740.0,95739.0,0.27387917]
[1739892291101,0.0001702,95740.0,95739.0,0.26687917]
[1739892291302,0.0001702,95740.0,95739.0,0.27387917]
[1739892291734,0.0001702,95740.0,95739.0,0.26687917]
[1739892291941,0.0001702,95740.0,95739.0,0.27387917]
[1739892292394,0.0001702,95740.0,95739.0,0.26687917]
[1739892292596,0.0001702,95740.0,95739.0,0.27387917]
[1739892292797,0.0001702,95740.0,95739.0,0.11720417]
[1739892293247,0.0001702,95740.0,95739.0,0.01470052]
[1739892293461,0.1568442,95740.0,95739.0,0.01222384]
[1739892293913,0.1568442,95740.0,95739.0,0.0003404]
[1739892294119,0.1568442,95740.0,95739.0,0.0073404]
[1739892294331,1.4802922,95740.0,95739.0,0.0073404]
[1739892294556,0.7472772,95740.0,95739.0,0.0003404]
[1739892294761,0.7472772,95740.0,95739.0,0.0053404]
[1739892295195,0.2857442,95740.0,95739.0,0.0053404]
[1739892295406,0.1290702,95740.0,95739.0,0.0053404]
[1739892295605,0.2857442,95740.0,95739.0,0.0003404]
[1739892296505,0.1290702,95740.0,95739.0,0.0003404]
[1739892297328,0.0001702,95740.0,95739.0,0.0003404]
[1739892297537,0.0001702,95740.0,95739.0,0.1570154]
[1739892297955,0.0001702,95740.0,95739.0,0.16290701]
[1739892298398,0.0001702,95740.0,95739.0,0.16190701]
[1739892298615,0.0001702,95740.0,95739.0,0.16490701]
[1739892299061,0.0001702,95740.0,95739.0,0.26845505]
[1739892299269,0.0001702,95740.0,95739.0,0.26741066]
[1739892299482,0.0001702,95740.0,95739.0,0.26987077]
[1739892301041,0.0001702,95740.0,95739.0,0.26687077]
[1739892301273,0.0001702,95740.0,95739.0,0.49907077]
[1739892301521,0.0001702,95740.0,95739.0,0.50607077]
[1739892301756,0.0001702,95740.0,95739.0,0.49907077]
[1739892302166,0.0001702,95740.0,95739.0,0.50607077]
[1739892303029,0.0001702,95740.0,95739.0,0.52693551]
[1739892303452,0.0001702,95740.0,95739.0,0.50607077]
[1739892303672,0.001396,95764.0,95739.0,0.19939577]
[1739892303959,0.001396,95764.0,95758.0,0.208858]
[1739892304163,0.001396,95764.0,95740.0,0.10250365]
[1739892304164,0.001396,95764.0,95756.0,0.156648]
[1739892304414,0.001396,95764.0,95759.0,0.16393407]
[1739892304620,0.001396,95764.0,95760.0,0.16392962]
[1739892305233,0.00183665,95764.0,95763.0,0.156636]
[1739892305468,0.00183665,95764.0,95763.0,0.00728228]
[1739892305889,0.00183665,95764.0,95731.0,0.09275306]
[1739892306086,0.15847165,95764.0,95763.0,0.00728228]
[1739892306222,0.35594265,95764.0,95747.0,0.208883]
[1739892306441,0.156645,95758.0,95748.0,0.10982265]
[1739892306645,0.156651,95754.0,95748.0,0.10982265]
[1739892306847,0.0824,95758.0,95748.0,0.007319]
[1739892307048,0.156659,95749.0,95748.0,0.007319]
[1739892307274,0.208883,95747.0,95715.0,0.1503404]
[1739892307481,0.208888,95746.0,95731.0,0.156688]
[1739892307652,0.156674,95740.0,95715.0,0.0003404]
[1739892308064,0.06166971,95749.0,95730.0,0.20892]
[1739892308394,0.06166971,95749.0,95748.0,0.006]
[1739892308565,0.06166971,95749.0,95739.0,0.1570154]
[1739892308768,0.06166971,95749.0,95740.0,0.00489392]
[1739892308979,0.156671,95742.0,95739.0,0.0043404]
[1739892309189,0.156673,95741.0,95739.0,0.0003404]
[1739892309835,0.156669,95744.0,95739.0,0.0003404]
[1739892310023,0.06166971,95749.0,95739.0,0.0003404]
[1739892310225,0.114114,95748.0,95739.0,0.0003404]
[1739892310428,0.156674,95740.0,95739.0,0.0003404]
[1739892310996,0.327907,95740.0,95739.0,0.0003404]
[1739892311204,0.06166971,95749.0,95739.0,0.0043404]
[1739892311409,0.156666,95745.0,95739.0,0.0003404]
[1739892311617,0.15,95748.0,95740.0,0.00489235]
[1739892311829,0.368954,95747.0,95740.0,0.00489235]
[1739892312033,0.156668,95744.0,95740.0,0.00489235]
[1739892312442,0.15,95748.0,95740.0,0.00489235]
[1739892312643,0.103652,95747.0,95741.0,0.156672]
[1739892312877,0.103652,95747.0,95740.0,0.156673]
[1739892313094,0.1237,95760.0,95742.0,0.00488964]
[1739892313301,0.10413,95759.0,95742.0,0.208894]
[1739892313517,0.15,95758.0,95747.0,0.156661]
[1739892313718,0.135033,95757.0,95745.0,0.208888]
[1739892313933,0.135033,95757.0,95748.0,0.00731976]
[1739892314177,0.156648,95756.0,95749.0,0.00731593]
[1739892314392,0.156647,95757.0,95744.0,0.208889]
[1739892314682,0.1237,95760.0,95747.0,0.003]
[1739892314683,0.156649,95755.0,95747.0,0.003]
[1739892315101,0.156649,95755.0,95748.0,0.00731838]
[1739892315305,0.15,95759.0,95749.0,0.002]
[1739892315486,0.156648,95756.0,95749.0,0.002]
[1739892315697,0.156648,95756.0,95746.0,0.156664]
[1739892315904,0.156648,95756.0,95747.0,0.002]
[1739892316113,0.156647,95757.0,95747.0,0.16598283]
[1739892316316,0.15,95759.0,95747.0,0.00932083]
[1739892316317,0.0639203,95756.0,95747.0,0.00932083]
[1739892316525,0.15,95759.0,95747.0,0.00932083]
[1739892316735,0.156654,95753.0,95747.0,0.002]
[1739892316940,0.156657,95751.0,95747.0,0.002]
[1739892317147,0.156654,95752.0,95748.0,0.00731838]
[1739892317359,0.358857,95759.0,95739.0,0.0003404]
[1739892317566,0.156651,95755.0,95749.0,0.00831593]
[1739892317766,0.258003,95758.0,95739.0,0.0003404]
[1739892317972,0.156654,95753.0,95750.0,0.00731348]
[1739892318179,0.156647,95757.0,95747.0,0.159662]
[1739892318413,0.01636936,95762.0,95761.0,0.156639]
[1739892318652,0.01500824,95767.0,95763.0,0.156636]
[1739892318871,0.01500824,95767.0,95763.0,0.00728166]
[1739892319318,0.17163824,95767.0,95757.0,0.156646]
[1739892319530,0.17163824,95767.0,95763.0,0.00728166]
[1739892319746,0.22384824,95767.0,95749.0,0.003]
[1739892319961,0.01500824,95767.0,95755.0,0.208866]
[1739892320172,0.01500824,95767.0,95750.0,0.10981713]
[1739892320434,0.01500824,95767.0,95760.0,0.15664]
[1739892320655,0.01500824,95767.0,95750.0,0.10250365]
[1739892320656,0.01500824,95767.0,95761.0,0.00728655]
[1739892320871,0.01500824,95767.0,95760.0,0.208853]
[1739892321081,0.15864185,95764.0,95763.0,0.005]
[1739892321312,0.191374,95763.0,95761.0,0.00728655]
[1739892321522,0.00200685,95764.0,95760.0,0.003]
[1739892321737,0.191374,95763.0,95762.0,0.00726733]
[1739892321941,0.00200685,95764.0,95760.0,0.003]
[1739892322378,0.00200685,95764.0,95740.0,0.10250365]
[1739892322612,0.00200685,95764.0,95741.0,0.00104435]
[1739892322848,0.00200685,95764.0,95761.0,0.159638]
[1739892323034,0.00200685,95764.0,95762.0,0.00726733]
[1739892323232,0.00200685,95764.0,95761.0,0.159638]
[1739892323478,0.00200685,95764.0,95762.0,0.00726733]
[1739892323944,0.00200685,95764.0,95761.0,0.003]
[1739892324127,0.00200685,95764.0,95763.0,0.00726488]
[1739892324348,0.10563885,95764.0,95762.0,0.00726733]
[1739892324579,0.00200685,95764.0,95763.0,0.00726488]
[1739892324798,0.10563885,95764.0,95763.0,0.16390088]
[1739892325009,0.00200685,95764.0,95763.0,0.16390088]
[1739892325657,0.00200685,95764.0,95763.0,0.00726488]
[1739892325865,0.00200685,95764.0,95763.0,0.159636]
[1739892326076,0.00200685,95764.0,95763.0,0.00726488]
[1739892326505,0.00200685,95764.0,95763.0,0.156636]
[1739892326740,0.00200685,95764.0,95763.0,0.16390088]
[1739892327150,0.00200685,95764.0,95763.0,0.00726488]
[1739892327361,0.00200685,95764.0,95763.0,0.16390088]
[1739892327581,0.00200685,95764.0,95763.0,0.161636]
[1739892327793,0.00200685,95764.0,95763.0,0.01226488]
[1739892328242,0.00200685,95764.0,95763.0,0.005]
[1739892328450,0.00200685,95764.0,95763.0,0.16890088]
[1739892329324,0.00200685,95764.0,95763.0,0.34964876]
[1739892329543,8.5e-07,95764.0,95763.0,0.36403309]
[1739892329960,8.5e-07,95764.0,95763.0,0.38481405]
[1739892330167,8.5e-07,95764.0,95763.0,0.53481405]
[1739892331021,8.5e-07,95764.0,95763.0,0.51938549]
[1739892331228,8.5e-07,95764.0,95763.0,0.53856303]
[1739892331437,8.5e-07,95764.0,95763.0,0.53456303]
[1739892331882,8.5e-07,95764.0,95763.0,0.54156303]
[1739892332048,8.5e-07,95764.0,95763.0,0.53456303]
[1739892332466,8.5e-07,95764.0,95763.0,0.54156303]
[1739892334300,8.5e-07,95764.0,95763.0,0.53456303]
[1739892334508,8.5e-07,95764.0,95763.0,0.53490323]
[1739892334739,8.5e-07,95764.0,95763.0,0.54190323]
[1739892334956,8.5e-07,95764.0,95763.0,0.53490323]
[1739892335163,8.5e-07,95764.0,95763.0,0.54190323]
[1739892335608,8.5e-07,95764.0,95763.0,0.53490323]
[1739892335820,8.5e-07,95764.0,95763.0,0.54190323]
[1739892336234,8.5e-07,95764.0,95763.0,0.53490323]
[1739892336640,8.5e-07,95764.0,95763.0,0.51666323]
[1739892337466,8.5e-07,95769.0,95768.0,0.306628]
[1739892337673,1e-07,95785.0,95784.0,0.237702]
[1739892337880,1.8e-07,95785.0,95784.0,0.49020565]
[1739892338099,1.8e-07,95785.0,95784.0,0.49743655]
[1739892338445,0.04514048,95825.0,95824.0,0.156536]
[1739892338650,0.04527251,95825.0,95824.0,0.00719196]
[1739892338853,0.04527251,95825.0,95824.0,0.16372796]
[1739892339566,0.06063711,95825.0,95824.0,0.00719196]
[1739892339724,0.06063711,95825.0,95824.0,0.16372796]
[1739892339926,0.06063711,95825.0,95824.0,0.156536]
[1739892340127,0.06063711,95825.0,95824.0,0.16379956]
[1739892340539,0.00013203,95825.0,95824.0,0.16379956]
[1739892341086,0.00013203,95825.0,95824.0,0.16343908]
[1739892341884,0.00013203,95825.0,95824.0,0.16143908]
[1739892342113,0.00013203,95825.0,95824.0,0.00490308]
[1739892342324,0.23576703,95825.0,95824.0,0.00990308]
[1739892342553,0.73144867,95825.0,95788.0,0.0831]
[1739892342773,0.14707468,95820.0,95789.0,0.10250365]
[1739892342990,1.458515,95819.0,95794.0,0.20878]
[1739892343207,1.458515,95819.0,95783.0,0.208803]
[1739892343208,1.294395,95818.0,95796.0,0.156581]
[1739892343453,1.294395,95818.0,95783.0,0.208803]
[1739892343454,0.15,95809.0,95770.0,0.19227468]
[1739892343671,0.156579,95798.0,95788.0,0.156594]
[1739892343884,0.14707468,95800.0,95791.0,0.15659]
[1739892344289,0.14707468,95800.0,95793.0,0.156587]
[1739892344502,0.14707468,95800.0,95796.0,0.002]
[1739892344730,0.0476,95802.0,95794.0,0.0050289]
[1739892344946,0.0476,95802.0,95797.0,0.00502401]
[1739892345155,0.0476,95802.0,95796.0,0.156582]
[1739892345367,0.0476,95802.0,95798.0,0.00502238]
[1739892345590,0.0476,95802.0,95791.0,0.004]
[1739892345591,0.0471,95813.0,95811.0,0.156557]
[1739892345817,0.079,95824.0,95800.0,0.00104372]
[1739892346065,0.04723203,95825.0,95823.0,0.156538]
[1739892346278,0.00030213,95825.0,95824.0,0.00502526]
[1739892348076,0.00030213,95825.0,95824.0,0.00902526]
[1739892350389,0.00030213,95825.0,95824.0,0.004]
[1739892350602,0.00030213,95825.0,95824.0,0.0090911]
[1739892350800,0.15030213,95825.0,95824.0,0.004]
[1739892351654,0.38210613,95825.0,95809.0,0.15656]
[1739892351858,0.14707468,95820.0,95810.0,0.00511391]
[1739892352061,0.14707468,95820.0,95801.0,0.10250365]
[1739892352271,0.14707468,95820.0,95802.0,0.00512696]
[1739892352489,0.14707468,95820.0,95803.0,0.10250365]
[1739892352718,0.14707468,95820.0,95810.0,0.156559]
[1739892352920,0.14707468,95820.0,95804.0,0.2138827]
[1739892353128,0.14707468,95820.0,95811.0,0.16166928]
[1739892353331,0.14707468,95820.0,95812.0,0.156555]
[1739892353550,0.156542,95821.0,95812.0,0.16166565]
[1739892354409,0.00030213,95825.0,95814.0,0.156552]
[1739892354611,0.15,95823.0,95815.0,0.00510576]
[1739892354818,0.15,95821.0,95815.0,0.00510576]
[1739892355030,0.15,95821.0,95816.0,0.00510413]
[1739892355800,0.15,95824.0,95816.0,0.00510413]
[1739892356013,0.156545,95819.0,95809.0,0.156561]
[1739892356216,0.156545,95819.0,95815.0,0.003]
[1739892356532,0.814795,95818.0,95784.0,0.208801]
[1739892356765,0.814795,95818.0,95760.0,0.49557468]
[1739892356766,0.14707468,95800.0,95792.0,0.156588]
[1739892356935,0.156567,95806.0,95793.0,0.25909065]
[1739892357139,0.156569,95804.0,95793.0,0.10250365]
[1739892357336,0.156572,95803.0,95793.0,0.10250365]
[1739892357640,0.0498,95809.0,95793.0,0.10250365]
[1739892357933,0.14707468,95803.0,95787.0,0.156597]
[1739892358139,0.04056137,95808.0,95787.0,0.10250365]
[1739892358343,0.394384,95807.0,95793.0,0.0003404]
[1739892358487,0.14707468,95800.0,95793.0,0.0003404]
[1739892358692,0.14707468,95800.0,95794.0,0.156585]
[1739892358911,0.14707468,95800.0,95793.0,0.1569274]
[1739892359287,0.14707468,95800.0,95793.0,0.0023404]
[1739892359496,0.14707468,95800.0,95793.0,0.0003404]
[1739892359714,0.156568,95805.0,95794.0,0.156586]
[1739892359920,0.01442957,95800.0,95794.0,0.003]
[1739892360095,0.14707468,95803.0,95793.0,0.0003404]
[1739892360345,0.14707468,95803.0,95795.0,0.156583]
[1739892360558,0.306586,95794.0,95793.0,0.0033404]
[1739892360766,0.4812212,95794.0,95793.0,0.0033404]
[1739892360969,0.429686,95794.0,95793.0,0.0003404]
[1739892361170,4.23577833,95794.0,95793.0,0.0003404]
[1739892361375,4.01610633,95794.0,95793.0,0.0003404]
[1739892361801,4.11860998,95794.0,95793.0,0.0003404]
[1739892362009,4.22111363,95794.0,95793.0,0.0003404]
[1739892362421,4.24043178,95794.0,95793.0,0.0003404]
[1739892362833,4.22406945,95794.0,95793.0,0.0003404]
[1739892363120,4.22406945,95794.0,95793.0,0.0013404]
[1739892363330,0.15,95793.0,95745.0,0.076]
[1739892363543,0.15,95793.0,95763.0,0.00047228]
[1739892363544,0.156635,95764.0,95763.0,0.00047228]
[1739892364117,0.156633,95766.0,95763.0,0.00047228]
[1739892364319,0.01427528,95766.0,95763.0,0.00047228]
[1739892364521,0.156633,95765.0,95763.0,0.00047228]
[1739892364748,0.156635,95764.0,95763.0,0.00047228]
[1739892364905,0.17595315,95764.0,95763.0,0.00047228]
[1739892365170,3.48688515,95764.0,95763.0,0.00047228]
[1739892365383,3.38628215,95764.0,95763.0,0.00047228]
[1739892365582,3.6387858,95764.0,95763.0,0.00047228]
[1739892365793,3.75765861,95764.0,95763.0,0.00047228]
[1739892365996,3.83765861,95764.0,95763.0,0.00047228]
[1739892366195,0.156657,95750.0,95749.0,0.0003404]
[1739892366399,0.306657,95750.0,95749.0,0.00078105]
[1739892366605,0.40916065,95750.0,95749.0,0.00078105]
[1739892366803,3.60848765,95750.0,95749.0,0.00078105]
[1739892367009,1.493691,95750.0,95749.0,0.00078105]
[1739892367222,3.91090544,95750.0,95749.0,0.00078105]
[1739892367430,4.26048609,95750.0,95749.0,0.00078105]
[1739892367639,4.28180424,95750.0,95749.0,0.00078105]
[1739892367837,4.10666324,95750.0,95749.0,0.00078105]
[1739892368082,4.20916689,95750.0,95749.0,0.00078105]
[1739892368491,3.67250624,95750.0,95749.0,0.00078105]
[1739892369297,3.67050624,95750.0,95749.0,0.00078105]
[1739892369618,3.67250624,95750.0,95749.0,0.00078105]
[1739892369818,3.67050624,95750.0,95749.0,0.00078105]
[1739892370234,3.67250624,95750.0,95749.0,0.00078105]
[1739892370444,3.77300989,95750.0,95749.0,0.00078105]
[1739892370654,3.49327924,95750.0,95749.0,0.00078105]
[1739892370860,3.49527924,95750.0,95749.0,0.00078105]
[1739892371062,3.49327924,95750.0,95749.0,0.00078105]
[1739892371906,3.47396109,95750.0,95749.0,0.00078105]
[1739892372118,3.57646474,95750.0,95749.0,0.00078105]
[1739892372523,3.57846474,95750.0,95749.0,0.00078105]
[1739892372807,3.57646474,95750.0,95749.0,0.00078105]
[1739892373023,3.5620933,95750.0,95749.0,0.00078105]
[1739892373510,1.158396,95750.0,95749.0,0.00078105]
[1739892373749,0.002,95750.0,95749.0,0.00078105]
[1739892373990,0.158657,95750.0,95749.0,0.00078105]
[1739892374418,0.308657,95750.0,95749.0,0.00078105]
[1739892374637,5.888285,95750.0,95749.0,0.00078105]
[1739892374847,4.240031,95750.0,95749.0,0.00078105]
[1739892375074,4.4450383,95750.0,95749.0,0.00078105]
[1739892375310,4.60112675,95750.0,95749.0,0.00078105]
[1739892375518,4.59912675,95750.0,95749.0,0.00078105]
[1739892375734,4.6182953,95750.0,95749.0,0.00078105]